{"text_format":"1","workbook":"xlsx","n_sheets":2,"sheets":["Voedsel lijst","Daglijst"],"not_rendered":{"charts":0,"images":0,"macros":1,"external_links":0,"defined_names":3,"comments":0,"pivot_tables":0},"unopened":[],"bounds":{"document_bytes":16777216,"sheet_cells":100000,"rows_first":2000,"rows_last":500,"rows_between":2000,"halvings":0,"cell_chars":16384,"cell_head_chars":4096},"cells_cut":0,"cells_raw":0,"read":"whole","date_system":"1900"}

{"sheet":"Voedsel lijst","index":0,"n_rows":30,"n_cols":3,"rows_kept":30,"cut":false,"hidden":false,"merged":[]}
["Voedsel:","cal/100 gr.","cal/gr"]
["appel",75,{"$f":"IF(B2<>\"\",B2/100,\"\")","v":0.75}]
["brood",200,2]
["kers",45,0.45]
["peer",75,0.75]
["soep",150,1.5]
["Tomtaat",100,1]
[null,null,""]
[null,null,""]
[null,null,""]
[null,null,""]
[null,null,""]
[null,null,""]
[null,null,""]
[null,null,""]
[null,null,""]
[null,null,""]
[null,null,""]
[null,null,""]
[null,null,""]
[null,null,""]
[null,null,{"$f":"IF(B22<>\"\",B22/100,\"\")","v":""}]
[null,null,""]
[null,null,""]
[null,null,""]
[null,null,""]
[null,null,""]
[null,null,""]
[null,null,""]
[null,null,""]

{"sheet":"Daglijst","index":1,"n_rows":34,"n_cols":11,"rows_kept":34,"cut":false,"hidden":false,"merged":[[1,3,1,5]]}
["datum","cal."]
["2019-06-01",null,null,"2019-06-06",null,null,null,"Totaal aantal calorieen",null,null,{"$f":"SUM(G5:G18)","v":0}]
["2019-06-02"]
["2019-06-03",null,null,null,"Lunch","grams","calories"]
["2019-06-04",null,null,null,"brood",null,{"$f":"IF(F5<>\"\",VLOOKUP(E5,voedsellijst,3,0)*F5,\"\")","v":""},null,null,null,"Kies een product met validatie"]
["2019-06-05",null,null,null,"peer",null,"",null,null,null,"Vul de grammen in,  de cal. worden ingevuld bij de juiste datum"]
["2019-06-06",null,null,null,null,null,"",null,null,null,"bij het veranderen van de datum zal de lijst gewist worden"]
["2019-06-07",null,null,null,null,null,""]
["2019-06-08",null,null,null,null,null,""]
["2019-06-09",null,null,null,null,null,""]
["2019-06-10",null,null,null,null,null,""]
["2019-06-11",null,null,null,null,null,""]
["2019-06-12",null,null,null,null,null,""]
["2019-06-13",null,null,null,null,null,""]
["2019-06-14",null,null,null,null,null,""]
["2019-06-15",null,null,null,null,null,""]
["2019-06-16",null,null,null,null,null,""]
["2019-06-17",null,null,null,null,null,""]
["2019-06-18",null,null,null,null,null,""]
["2019-06-19",null,null,null,null,null,""]
["2019-06-20",null,null,null,null,null,""]
["2019-06-21",null,null,null,null,null,""]
["2019-06-22",null,null,null,null,null,""]
["2019-06-23",null,null,null,null,null,""]
["2019-06-24",null,null,null,null,null,""]
["2019-06-25",null,null,null,null,null,""]
["2019-06-26",null,null,null,null,null,""]
["2019-06-27",null,null,null,null,null,""]
["2019-06-28",null,null,null,null,null,""]
["2019-06-29",null,null,null,null,null,""]
["2019-06-30",null,null,null,null,null,""]
["2019-07-01",null,null,null,null,null,""]
["2019-07-02",null,null,null,null,null,""]
[null,null,null,null,null,null,""]